[Event "Titled Tuesday Blitz May 24 Late 2022"]
[White "Melikhov, Evgeny V."]
[Black "Vujic, Mihailo"]
[WhiteFideId "4122046"]
[BlackFideId "918873"]
[WhiteElo "1931"]
[BlackElo "2256"]
[Result "0-1"]
[Round "06"]
[TimeControl "180+1"]
[Date "2022.05.25"]
[WhiteClock "0:00:08"]
[BlackClock "0:00:13"]

1. d4 {[%clk 0:03:00]}  d5 {[%clk 0:02:58]} 2. c4 {[%clk 0:03:00]}  e5 {[%clk 0:02:58]} 3. dxe5 {[%clk 0:03:00]}  d4 {[%clk 0:02:58]} 4. Nf3 {[%clk 0:03:01]}  Nc6 {[%clk 0:02:59]} 5. g3 {[%clk 0:03:00]}  Nge7 {[%clk 0:02:59]} 6. Bg2 {[%clk 0:02:59]}  Ng6 {[%clk 0:03:00]} 7. Bg5 {[%clk 0:02:59]}  Qd7 {[%clk 0:02:59]} 8. O-O {[%clk 0:02:56]}  h6 {[%clk 0:02:59]} 9. Bc1 {[%clk 0:02:56]}  Ngxe5 {[%clk 0:02:58]} 10. Nbd2 {[%clk 0:02:54]}  Be7 {[%clk 0:02:56]} 11. Nxe5 {[%clk 0:02:37]}  Nxe5 {[%clk 0:02:55]} 12. Nf3 {[%clk 0:02:36]}  Nxf3+ {[%clk 0:02:54]} 13. Bxf3 {[%clk 0:02:34]}  O-O {[%clk 0:02:55]} 14. e3 {[%clk 0:02:23]}  Bf6 {[%clk 0:02:53]} 15. exd4 {[%clk 0:02:22]}  Qxd4 {[%clk 0:02:52]} 16. Qxd4 {[%clk 0:02:21]}  Bxd4 {[%clk 0:02:53]} 17. Rd1 {[%clk 0:02:09]}  Bf6 {[%clk 0:02:46]} 18. Bf4 {[%clk 0:02:01]}  c6 {[%clk 0:02:44]} 19. Rd2 {[%clk 0:01:47]}  Bf5 {[%clk 0:02:41]} 20. Rad1 {[%clk 0:01:41]}  Rad8 {[%clk 0:02:40]} 21. Rxd8 {[%clk 0:01:35]}  Rxd8 {[%clk 0:02:41]} 22. Rxd8+ {[%clk 0:01:34]}  Bxd8 {[%clk 0:02:41]} 23. b4 {[%clk 0:01:27]}  Be6 {[%clk 0:02:37]} 24. Be2 {[%clk 0:01:17]}  Be7 {[%clk 0:02:36]} 25. a3 {[%clk 0:01:15]}  g5 {[%clk 0:02:34]} 26. Bc7 {[%clk 0:01:11]}  f5 {[%clk 0:02:32]} 27. c5 {[%clk 0:01:09]}  Kf7 {[%clk 0:02:32]} 28. a4 {[%clk 0:01:03]}  Bd5 {[%clk 0:02:26]} 29. Bb8 {[%clk 0:00:46]}  a5 {[%clk 0:02:23]} 30. bxa5 {[%clk 0:00:44]}  Bxc5 {[%clk 0:02:22]} 31. a6 {[%clk 0:00:45]}  bxa6 {[%clk 0:02:17]} 32. Bxa6 {[%clk 0:00:45]}  Bb6 {[%clk 0:02:14]} 33. Bb7 {[%clk 0:00:40]}  Ke7 {[%clk 0:02:07]} 34. Be5 {[%clk 0:00:37]}  Kd7 {[%clk 0:02:00]} 35. Bc3 {[%clk 0:00:37]}  Ba7 {[%clk 0:01:54]} 36. a5 {[%clk 0:00:31]}  Kd6 {[%clk 0:01:34]} 37. Bc8 {[%clk 0:00:29]}  Be6 {[%clk 0:01:26]} 38. Bxe6 {[%clk 0:00:26]}  Kxe6 {[%clk 0:01:27]} 39. Bd2 {[%clk 0:00:22]}  Kd5 {[%clk 0:01:22]} 40. h4 {[%clk 0:00:21]}  gxh4 {[%clk 0:01:17]} 41. gxh4 {[%clk 0:00:21]}  h5 {[%clk 0:01:16]} 42. Kg2 {[%clk 0:00:18]}  Ke4 {[%clk 0:01:08]} 43. f3+ {[%clk 0:00:18]}  Kd3 {[%clk 0:01:05]} 44. Be1 {[%clk 0:00:18]}  Ke2 {[%clk 0:00:57]} 45. Bg3 {[%clk 0:00:14]}  c5 {[%clk 0:00:43]} 46. Be5 {[%clk 0:00:15]}  c4 {[%clk 0:00:43]} 47. Kg3 {[%clk 0:00:15]}  Be3 {[%clk 0:00:37]} 48. a6 {[%clk 0:00:13]}  Kd3 {[%clk 0:00:36]} 49. a7 {[%clk 0:00:13]}  Bxa7 {[%clk 0:00:35]} 50. Kf4 {[%clk 0:00:13]}  Bd4 {[%clk 0:00:32]} 51. Bd6 {[%clk 0:00:12]}  c3 {[%clk 0:00:30]} 52. Kxf5 {[%clk 0:00:12]}  c2 {[%clk 0:00:29]} 53. Ba3 {[%clk 0:00:12]}  Be3 {[%clk 0:00:14]} 54. f4 {[%clk 0:00:09]}  Kc3 {[%clk 0:00:14]} 55. Ke4 {[%clk 0:00:10]}  Kb3 {[%clk 0:00:13]} 56. Kxe3 {[%clk 0:00:08]}  Kxa3 {[%clk 0:00:13]} 57. f5 {[%clk 0:00:08]}  c1=Q+ {[%clk 0:00:13]} 0-1


[Site "https://www.chess.com"]

[Event "Titled Tuesday Blitz May 24 Late 2022"]
[White "Meunier-Pion, Jean"]
[Black "Yurovskykh, Oleksandr"]
[WhiteFideId "20685327"]
[BlackFideId "14134020"]
[WhiteElo "2124"]
[BlackElo "2292"]
[Result "0-1"]
[Round "06"]
[TimeControl "180+1"]
[Date "2022.05.25"]
[WhiteClock "0:00:20"]
[BlackClock "0:00:46"]

1. e4 {[%clk 0:03:00]}  d5 {[%clk 0:02:58]} 2. exd5 {[%clk 0:03:00]}  Qxd5 {[%clk 0:02:59]} 3. Nc3 {[%clk 0:03:00]}  Qd8 {[%clk 0:02:58]} 4. d4 {[%clk 0:03:00]}  Nf6 {[%clk 0:02:58]} 5. Nf3 {[%clk 0:03:01]}  Bg4 {[%clk 0:02:58]} 6. h3 {[%clk 0:02:59]}  Bxf3 {[%clk 0:02:57]} 7. Qxf3 {[%clk 0:02:59]}  c6 {[%clk 0:02:58]} 8. Be3 {[%clk 0:02:56]}  e6 {[%clk 0:02:58]} 9. Bc4 {[%clk 0:02:56]}  Nbd7 {[%clk 0:02:56]} 10. g4 {[%clk 0:02:52]}  Bb4 {[%clk 0:02:55]} 11. Bd2 {[%clk 0:02:51]}  Nb6 {[%clk 0:02:51]} 12. Bb3 {[%clk 0:02:41]}  Nfd5 {[%clk 0:02:47]} 13. O-O-O {[%clk 0:02:36]}  Nxc3 {[%clk 0:02:45]} 14. Bxc3 {[%clk 0:02:31]}  Bxc3 {[%clk 0:02:45]} 15. Qxc3 {[%clk 0:02:32]}  Nd5 {[%clk 0:02:45]} 16. Qc5 {[%clk 0:02:26]}  Qb6 {[%clk 0:02:35]} 17. Qd6 {[%clk 0:02:17]}  Qc7 {[%clk 0:02:32]} 18. Qxc7 {[%clk 0:02:09]}  Nxc7 {[%clk 0:02:33]} 19. f4 {[%clk 0:02:10]}  O-O-O {[%clk 0:02:30]} 20. Rhf1 {[%clk 0:02:07]}  Nd5 {[%clk 0:02:25]} 21. Rde1 {[%clk 0:02:05]}  h5 {[%clk 0:02:24]} 22. g5 {[%clk 0:01:58]}  g6 {[%clk 0:02:24]} 23. a3 {[%clk 0:01:58]}  Ne7 {[%clk 0:02:19]} 24. c3 {[%clk 0:01:57]}  Rd6 {[%clk 0:02:19]} 25. Re2 {[%clk 0:01:55]}  Rhd8 {[%clk 0:02:19]} 26. Rfe1 {[%clk 0:01:55]}  Kc7 {[%clk 0:02:13]} 27. Ba2 {[%clk 0:01:52]}  Kb6 {[%clk 0:02:14]} 28. Kc2 {[%clk 0:01:51]}  c5 {[%clk 0:02:13]} 29. dxc5+ {[%clk 0:01:47]}  Kxc5 {[%clk 0:02:14]} 30. b4+ {[%clk 0:01:47]}  Kc6 {[%clk 0:02:12]} 31. Bc4 {[%clk 0:01:36]}  Nd5 {[%clk 0:02:03]} 32. Rf2 {[%clk 0:01:24]}  Nb6 {[%clk 0:01:42]} 33. Bf1 {[%clk 0:01:17]}  Kc7 {[%clk 0:01:42]} 34. Kb3 {[%clk 0:01:02]}  Rd2 {[%clk 0:01:35]} 35. Rxd2 {[%clk 0:00:59]}  Rxd2 {[%clk 0:01:36]} 36. c4 {[%clk 0:00:59]}  Rd4 {[%clk 0:01:35]} 37. Re5 {[%clk 0:00:45]}  Rxf4 {[%clk 0:01:34]} 38. Rc5+ {[%clk 0:00:42]}  Kb8 {[%clk 0:01:34]} 39. Bg2 {[%clk 0:00:41]}  Rf2 {[%clk 0:01:32]} 40. Be4 {[%clk 0:00:40]}  Re2 {[%clk 0:01:30]} 41. Bd3 {[%clk 0:00:37]}  Re3 {[%clk 0:01:30]} 42. Kc3 {[%clk 0:00:37]}  Na4+ {[%clk 0:01:30]} 43. Kd4 {[%clk 0:00:36]}  Rxd3+ {[%clk 0:01:16]} 44. Kxd3 {[%clk 0:00:34]}  Nxc5+ {[%clk 0:01:16]} 45. bxc5 {[%clk 0:00:34]}  Kc7 {[%clk 0:01:10]} 46. Kd4 {[%clk 0:00:29]}  Kd7 {[%clk 0:00:53]} 47. Ke5 {[%clk 0:00:28]}  Ke7 {[%clk 0:00:53]} 48. h4 {[%clk 0:00:17]}  a6 {[%clk 0:00:51]} 49. Kd4 {[%clk 0:00:13]}  f6 {[%clk 0:00:50]} 50. gxf6+ {[%clk 0:00:09]}  Kxf6 {[%clk 0:00:51]} 51. c6 {[%clk 0:00:09]}  bxc6 {[%clk 0:00:51]} 52. Kc5 {[%clk 0:00:10]}  e5 {[%clk 0:00:52]} 53. Kxc6 {[%clk 0:00:06]}  e4 {[%clk 0:00:52]} 54. Kb6 {[%clk 0:00:07]}  e3 {[%clk 0:00:53]} 55. c5 {[%clk 0:00:08]}  e2 {[%clk 0:00:54]} 56. c6 {[%clk 0:00:08]}  e1=Q {[%clk 0:00:54]} 57. c7 {[%clk 0:00:09]}  Qc3 {[%clk 0:00:51]} 58. Kb7 {[%clk 0:00:09]}  g5 {[%clk 0:00:36]} 59. hxg5+ {[%clk 0:00:08]}  Kxg5 {[%clk 0:00:37]} 60. c8=Q {[%clk 0:00:08]}  Qxc8+ {[%clk 0:00:38]} 61. Kxc8 {[%clk 0:00:09]}  h4 {[%clk 0:00:39]} 62. Kb7 {[%clk 0:00:10]}  h3 {[%clk 0:00:40]} 63. Kxa6 {[%clk 0:00:10]}  h2 {[%clk 0:00:41]} 64. a4 {[%clk 0:00:10]}  h1=Q {[%clk 0:00:41]} 65. a5 {[%clk 0:00:11]}  Qa8+ {[%clk 0:00:41]} 66. Kb6 {[%clk 0:00:12]}  Kf6 {[%clk 0:00:42]} 67. Kb5 {[%clk 0:00:12]}  Ke6 {[%clk 0:00:43]} 68. Kb6 {[%clk 0:00:12]}  Kd7 {[%clk 0:00:44]} 69. Kb5 {[%clk 0:00:13]}  Kc7 {[%clk 0:00:44]} 70. a6 {[%clk 0:00:13]}  Qa7 {[%clk 0:00:44]} 71. Ka5 {[%clk 0:00:13]}  Kc6 {[%clk 0:00:45]} 72. Kb4 {[%clk 0:00:13]}  Qxa6 {[%clk 0:00:45]} 73. Kb3 {[%clk 0:00:13]}  Qb5+ {[%clk 0:00:45]} 74. Kc2 {[%clk 0:00:14]}  Qd5 {[%clk 0:00:46]} 75. Kc1 {[%clk 0:00:15]}  Kc5 {[%clk 0:00:47]} 76. Kb1 {[%clk 0:00:15]}  Qg2 {[%clk 0:00:47]} 77. Ka1 {[%clk 0:00:16]}  Kc4 {[%clk 0:00:48]} 78. Kb1 {[%clk 0:00:17]}  Kb3 {[%clk 0:00:48]} 79. Ka1 {[%clk 0:00:18]}  Qf2 {[%clk 0:00:47]} 80. Kb1 {[%clk 0:00:19]}  Qe2 {[%clk 0:00:47]} 81. Kc1 {[%clk 0:00:20]}  Qe1# {[%clk 0:00:46]} 0-1


[Site "https://www.chess.com"]

[Event "Titled Tuesday Blitz May 24 Late 2022"]
[White "Mickiewicz, Piotr"]
[Black "Melkumyan, Hrant"]
[WhiteFideId "1114891"]
[BlackFideId "13302485"]
[WhiteElo "2223"]
[BlackElo "2604"]
[Result "0-1"]
[Round "06"]
[TimeControl "180+1"]
[Date "2022.05.24"]
[WhiteClock "0:00:19"]
[BlackClock "0:02:15"]

1. e4 {[%clk 0:03:00]}  c6 {[%clk 0:02:57]} 2. d4 {[%clk 0:03:00]}  d5 {[%clk 0:02:57]} 3. Nc3 {[%clk 0:03:00]}  dxe4 {[%clk 0:02:55]} 4. Nxe4 {[%clk 0:03:01]}  Nf6 {[%clk 0:02:55]} 5. Nxf6+ {[%clk 0:03:01]}  exf6 {[%clk 0:02:55]} 6. c3 {[%clk 0:03:02]}  Bd6 {[%clk 0:02:55]} 7. Bd3 {[%clk 0:03:02]}  O-O {[%clk 0:02:56]} 8. Ne2 {[%clk 0:03:02]}  Re8 {[%clk 0:02:57]} 9. Qc2 {[%clk 0:03:02]}  h5 {[%clk 0:02:57]} 10. h3 {[%clk 0:03:02]}  Nd7 {[%clk 0:02:51]} 11. Be3 {[%clk 0:03:02]}  Nb6 {[%clk 0:02:51]} 12. c4 {[%clk 0:03:01]}  Bb4+ {[%clk 0:02:48]} 13. Kf1 {[%clk 0:02:58]}  h4 {[%clk 0:02:36]} 14. a3 {[%clk 0:02:56]}  Bf8 {[%clk 0:02:36]} 15. b4 {[%clk 0:02:55]}  a5 {[%clk 0:02:34]} 16. Rb1 {[%clk 0:02:49]}  axb4 {[%clk 0:02:34]} 17. axb4 {[%clk 0:02:49]}  Ra3 {[%clk 0:02:34]} 18. Nc3 {[%clk 0:02:34]}  Be6 {[%clk 0:02:33]} 19. Ne2 {[%clk 0:01:57]}  Rxd3 {[%clk 0:02:30]} 20. Qxd3 {[%clk 0:01:55]}  Bxc4 {[%clk 0:02:31]} 21. Qc2 {[%clk 0:01:54]}  Bb5 {[%clk 0:02:31]} 22. Kg1 {[%clk 0:01:39]}  Nd5 {[%clk 0:02:30]} 23. Nc3 {[%clk 0:01:18]}  Nxe3 {[%clk 0:02:29]} 24. fxe3 {[%clk 0:01:18]}  Rxe3 {[%clk 0:02:30]} 25. Nxb5 {[%clk 0:00:57]}  cxb5 {[%clk 0:02:30]} 26. Qd2 {[%clk 0:00:56]}  Re4 {[%clk 0:02:22]} 27. Rd1 {[%clk 0:00:54]}  Bd6 {[%clk 0:02:18]} 28. Re1 {[%clk 0:00:19]}  Bf4 {[%clk 0:02:15]} 0-1


[Site "https://www.chess.com"]

[Event "Titled Tuesday Blitz May 24 Late 2022"]
[White "Santos Ruiz, Miguel"]
[Black "Terry, Renato"]
[WhiteFideId "22291482"]
[BlackFideId "3803457"]
[WhiteElo "2486"]
[BlackElo "2577"]
[Result "0-1"]
[Round "06"]
[TimeControl "180+1"]
[Date "2022.05.24"]
[WhiteClock "0:00:05"]
[BlackClock "0:00:05"]

1. e4 {[%clk 0:03:00]}  g6 {[%clk 0:02:57]} 2. d4 {[%clk 0:02:59]}  Bg7 {[%clk 0:02:57]} 3. Be3 {[%clk 0:02:57]}  c6 {[%clk 0:02:52]} 4. c3 {[%clk 0:02:54]}  d5 {[%clk 0:02:51]} 5. e5 {[%clk 0:02:53]}  f6 {[%clk 0:02:52]} 6. f4 {[%clk 0:02:53]}  Nh6 {[%clk 0:02:52]} 7. Nf3 {[%clk 0:02:53]}  Bg4 {[%clk 0:02:51]} 8. Nbd2 {[%clk 0:02:53]}  Nf5 {[%clk 0:02:51]} 9. Bf2 {[%clk 0:02:52]}  fxe5 {[%clk 0:02:51]} 10. fxe5 {[%clk 0:02:51]}  Bh6 {[%clk 0:02:45]} 11. h3 {[%clk 0:02:28]}  Bxf3 {[%clk 0:02:45]} 12. Nxf3 {[%clk 0:02:28]}  Ne3 {[%clk 0:02:33]} 13. Qb3 {[%clk 0:02:28]}  Qb6 {[%clk 0:02:27]} 14. Qxb6 {[%clk 0:01:39]}  axb6 {[%clk 0:02:27]} 15. Ke2 {[%clk 0:01:33]}  Nc4 {[%clk 0:02:14]} 16. b3 {[%clk 0:01:26]}  Na3 {[%clk 0:02:14]} 17. Kd3 {[%clk 0:01:21]}  e6 {[%clk 0:02:12]} 18. Be2 {[%clk 0:01:15]}  Nd7 {[%clk 0:02:06]} 19. h4 {[%clk 0:01:12]}  c5 {[%clk 0:02:06]} 20. h5 {[%clk 0:01:01]}  O-O {[%clk 0:01:35]} 21. Rh4 {[%clk 0:00:34]}  gxh5 {[%clk 0:01:03]} 22. Bd1 {[%clk 0:00:32]}  c4+ {[%clk 0:00:52]} 23. Ke2 {[%clk 0:00:31]}  Nb5 {[%clk 0:00:52]} 24. Be1 {[%clk 0:00:29]}  cxb3 {[%clk 0:00:47]} 25. Bxb3 {[%clk 0:00:27]}  Rf5 {[%clk 0:00:18]} 26. Bc2 {[%clk 0:00:27]}  Rf7 {[%clk 0:00:17]} 27. Rxh5 {[%clk 0:00:27]}  Kg7 {[%clk 0:00:13]} 28. Bd3 {[%clk 0:00:23]}  Na3 {[%clk 0:00:12]} 29. Bd2 {[%clk 0:00:20]}  Bxd2 {[%clk 0:00:11]} 30. Rxh7+ {[%clk 0:00:20]}  Kg8 {[%clk 0:00:12]} 31. Rxf7 {[%clk 0:00:19]}  Kxf7 {[%clk 0:00:12]} 32. Kxd2 {[%clk 0:00:20]}  b5 {[%clk 0:00:11]} 33. Ng5+ {[%clk 0:00:19]}  Ke7 {[%clk 0:00:11]} 34. Ke2 {[%clk 0:00:18]}  Nc4 {[%clk 0:00:09]} 35. Nf3 {[%clk 0:00:14]}  Ndb6 {[%clk 0:00:07]} 36. g4 {[%clk 0:00:12]}  Ra3 {[%clk 0:00:07]} 37. g5 {[%clk 0:00:11]}  Na4 {[%clk 0:00:07]} 38. g6 {[%clk 0:00:11]}  Nxc3+ {[%clk 0:00:07]} 39. Kf2 {[%clk 0:00:11]}  Ne4+ {[%clk 0:00:08]} 40. Bxe4 {[%clk 0:00:11]}  dxe4 {[%clk 0:00:09]} 41. Ng5 {[%clk 0:00:10]}  e3+ {[%clk 0:00:04]} 42. Ke2 {[%clk 0:00:10]}  Ra8 {[%clk 0:00:05]} 43. Rh1 {[%clk 0:00:09]}  Rxa2+ {[%clk 0:00:06]} 44. Kd3 {[%clk 0:00:09]}  Ra3+ {[%clk 0:00:03]} 45. Ke4 {[%clk 0:00:09]}  e2 {[%clk 0:00:04]} 46. g7 {[%clk 0:00:09]}  Ra8 {[%clk 0:00:04]} 47. Re1 {[%clk 0:00:06]}  Rg8 {[%clk 0:00:04]} 48. Rxe2 {[%clk 0:00:06]}  Rxg7 {[%clk 0:00:05]} 49. Nf3 {[%clk 0:00:07]}  Rg4+ {[%clk 0:00:05]} 50. Kd3 {[%clk 0:00:07]}  Rg3 {[%clk 0:00:05]} 51. Ke4 {[%clk 0:00:07]}  Rg4+ {[%clk 0:00:06]} 52. Kd3 {[%clk 0:00:07]}  Kd7 {[%clk 0:00:04]} 53. Rf2 {[%clk 0:00:05]}  Rf4 {[%clk 0:00:03]} 54. Ke2 {[%clk 0:00:04]}  Kc6 {[%clk 0:00:03]} 55. Rg2 {[%clk 0:00:04]}  Re4+ {[%clk 0:00:03]} 56. Kf2 {[%clk 0:00:04]}  Ne3 {[%clk 0:00:02]} 57. Rg6 {[%clk 0:00:04]}  Nd1+ {[%clk 0:00:02]} 58. Kg2 {[%clk 0:00:04]}  Kd5 {[%clk 0:00:03]} 59. Rg7 {[%clk 0:00:04]}  Ne3+ {[%clk 0:00:03]} 60. Kf2 {[%clk 0:00:04]}  Nd1+ {[%clk 0:00:03]} 61. Kg3 {[%clk 0:00:04]}  Nc3 {[%clk 0:00:03]} 62. Rd7+ {[%clk 0:00:04]}  Kc4 {[%clk 0:00:03]} 63. Rc7+ {[%clk 0:00:04]}  Kd3 {[%clk 0:00:03]} 64. Rxb7 {[%clk 0:00:05]}  Ne2+ {[%clk 0:00:04]} 65. Kf2 {[%clk 0:00:05]}  Nxd4 {[%clk 0:00:05]} 66. Ng5 {[%clk 0:00:05]}  Rxe5 {[%clk 0:00:04]} 67. Nf3 {[%clk 0:00:05]}  Rf5 {[%clk 0:00:04]} 68. Ke1 {[%clk 0:00:05]}  Nxf3+ {[%clk 0:00:04]} 69. Kd1 {[%clk 0:00:05]}  Nd4 {[%clk 0:00:05]} 70. Rc7 {[%clk 0:00:05]}  Rf1# {[%clk 0:00:05]} 0-1


[Site "https://www.chess.com"]

[Event "Titled Tuesday Blitz May 24 Late 2022"]
[White "Senthilkumar, Pranav"]
[Black "Dobre, Claudiu-Cristian"]
[WhiteFideId "2083477"]
[BlackFideId "1211854"]
[WhiteElo "2412"]
[BlackElo "2207"]
[Result "1-0"]
[Round "06"]
[TimeControl "180+1"]
[Date "2022.05.25"]
[WhiteClock "0:00:53"]
[BlackClock "0:00:01"]

1. Nf3 {[%clk 0:03:00]}  d5 {[%clk 0:02:59]} 2. g3 {[%clk 0:03:01]}  Nf6 {[%clk 0:02:58]} 3. Bg2 {[%clk 0:03:02]}  Bg4 {[%clk 0:02:58]} 4. O-O {[%clk 0:03:03]}  e6 {[%clk 0:02:57]} 5. c4 {[%clk 0:03:02]}  c6 {[%clk 0:02:57]} 6. cxd5 {[%clk 0:03:03]}  cxd5 {[%clk 0:02:53]} 7. Ne5 {[%clk 0:03:01]}  Bf5 {[%clk 0:02:52]} 8. d4 {[%clk 0:02:54]}  Nc6 {[%clk 0:02:49]} 9. Nc3 {[%clk 0:02:53]}  Rc8 {[%clk 0:02:44]} 10. Qa4 {[%clk 0:02:50]}  a6 {[%clk 0:02:43]} 11. Nxc6 {[%clk 0:02:48]}  Rxc6 {[%clk 0:02:43]} 12. Bg5 {[%clk 0:02:49]}  Be7 {[%clk 0:02:40]} 13. Bxf6 {[%clk 0:02:49]}  Bxf6 {[%clk 0:02:40]} 14. e4 {[%clk 0:02:49]}  b5 {[%clk 0:01:51]} 15. Nxb5 {[%clk 0:02:45]}  axb5 {[%clk 0:01:52]} 16. Qxb5 {[%clk 0:02:46]}  Qb6 {[%clk 0:01:52]} 17. Qxb6 {[%clk 0:02:43]}  Rxb6 {[%clk 0:01:52]} 18. exf5 {[%clk 0:02:44]}  Bxd4 {[%clk 0:01:43]} 19. fxe6 {[%clk 0:02:42]}  fxe6 {[%clk 0:01:43]} 20. a4 {[%clk 0:02:33]}  Bxb2 {[%clk 0:01:38]} 21. Ra2 {[%clk 0:02:27]}  Kf7 {[%clk 0:01:31]} 22. a5 {[%clk 0:02:27]}  Rbb8 {[%clk 0:01:30]} 23. f4 {[%clk 0:02:15]}  g6 {[%clk 0:01:28]} 24. g4 {[%clk 0:02:11]}  Bd4+ {[%clk 0:01:13]} 25. Kh1 {[%clk 0:02:11]}  Rb5 {[%clk 0:01:11]} 26. f5 {[%clk 0:02:08]}  gxf5 {[%clk 0:01:11]} 27. gxf5 {[%clk 0:02:07]}  e5 {[%clk 0:01:11]} 28. a6 {[%clk 0:02:07]}  e4 {[%clk 0:01:08]} 29. Rd1 {[%clk 0:02:04]}  Be3 {[%clk 0:00:56]} 30. Bf1 {[%clk 0:02:02]}  Rc5 {[%clk 0:00:53]} 31. Rxd5 {[%clk 0:01:50]}  Rxd5 {[%clk 0:00:50]} 32. Bc4 {[%clk 0:01:50]}  Rd8 {[%clk 0:00:50]} 33. Ra5 {[%clk 0:01:46]}  Kf6 {[%clk 0:00:36]} 34. Bxd5 {[%clk 0:01:45]}  Bb6 {[%clk 0:00:35]} 35. Rb5 {[%clk 0:01:42]}  Ba7 {[%clk 0:00:15]} 36. Bxe4 {[%clk 0:01:40]}  Rg8 {[%clk 0:00:15]} 37. Bg2 {[%clk 0:01:38]}  Rg5 {[%clk 0:00:15]} 38. Rb7 {[%clk 0:01:35]}  Bd4 {[%clk 0:00:14]} 39. a7 {[%clk 0:01:34]}  Bxa7 {[%clk 0:00:14]} 40. Rxa7 {[%clk 0:01:35]}  h5 {[%clk 0:00:10]} 41. Bh3 {[%clk 0:01:25]}  Rg8 {[%clk 0:00:06]} 42. Ra6+ {[%clk 0:01:25]}  Ke5 {[%clk 0:00:06]} 43. Rg6 {[%clk 0:01:15]}  Rb8 {[%clk 0:00:05]} 44. Rg5 {[%clk 0:01:14]}  Kf4 {[%clk 0:00:05]} 45. Rxh5 {[%clk 0:01:11]}  Kf3 {[%clk 0:00:05]} 46. Bg2+ {[%clk 0:01:10]}  Kf2 {[%clk 0:00:05]} 47. h4 {[%clk 0:01:09]}  Rg8 {[%clk 0:00:05]} 48. Rg5 {[%clk 0:01:09]}  Rh8 {[%clk 0:00:05]} 49. Rg4 {[%clk 0:01:08]}  Rh5 {[%clk 0:00:03]} 50. f6 {[%clk 0:01:08]}  Rf5 {[%clk 0:00:02]} 51. Rg6 {[%clk 0:01:07]}  Rh5 {[%clk 0:00:01]} 52. Bh3 {[%clk 0:01:01]}  Rxh4 {[%clk 0:00:01]} 53. Kh2 {[%clk 0:01:01]}  Rf4 {[%clk 0:00:01]} 54. Rh6 {[%clk 0:00:56]}  Rf3 {[%clk 0:00:01]} 55. Be6 {[%clk 0:00:55]}  Rf4 {[%clk 0:00:01]} 56. f7 {[%clk 0:00:53]} 1-0


[Site "https://www.chess.com"]

[Event "Titled Tuesday Blitz May 24 Late 2022"]
[White "Shirov, Alexei"]
[Black "Griffith, Kyron"]
[WhiteFideId "2209390"]
[BlackFideId "2046318"]
[WhiteElo "2678"]
[BlackElo "2232"]
[Result "0-1"]
[Round "06"]
[TimeControl "180+1"]
[Date "2022.05.24"]
[WhiteClock "0:00:08"]
[BlackClock "0:00:06"]

1. e4 {[%clk 0:03:00]}  c6 {[%clk 0:02:58]} 2. d4 {[%clk 0:02:59]}  d5 {[%clk 0:02:59]} 3. e5 {[%clk 0:03:00]}  Bf5 {[%clk 0:02:59]} 4. h4 {[%clk 0:02:59]}  h6 {[%clk 0:02:58]} 5. g4 {[%clk 0:02:57]}  Be4 {[%clk 0:02:59]} 6. f3 {[%clk 0:02:56]}  Bh7 {[%clk 0:02:59]} 7. e6 {[%clk 0:02:56]}  Qd6 {[%clk 0:02:59]} 8. exf7+ {[%clk 0:02:51]}  Kxf7 {[%clk 0:03:00]} 9. Ne2 {[%clk 0:02:51]}  Nd7 {[%clk 0:02:56]} 10. Bf4 {[%clk 0:02:48]}  e5 {[%clk 0:02:56]} 11. dxe5 {[%clk 0:02:44]}  Nxe5 {[%clk 0:02:57]} 12. Bg2 {[%clk 0:02:39]}  Re8 {[%clk 0:02:53]} 13. O-O {[%clk 0:02:37]}  g5 {[%clk 0:02:50]} 14. hxg5 {[%clk 0:02:32]}  hxg5 {[%clk 0:02:51]} 15. Bg3 {[%clk 0:02:31]}  Qc5+ {[%clk 0:02:41]} 16. Bf2 {[%clk 0:02:29]}  Qxc2 {[%clk 0:02:34]} 17. Qxc2 {[%clk 0:02:24]}  Bxc2 {[%clk 0:02:35]} 18. Nd4 {[%clk 0:02:24]}  Bg6 {[%clk 0:02:22]} 19. Nc3 {[%clk 0:02:20]}  Nf6 {[%clk 0:02:17]} 20. Rfd1 {[%clk 0:02:12]}  Nd3 {[%clk 0:02:17]} 21. Nf5 {[%clk 0:01:57]}  Bxf5 {[%clk 0:02:11]} 22. gxf5 {[%clk 0:01:56]}  Nxf2 {[%clk 0:02:10]} 23. Kxf2 {[%clk 0:01:56]}  Bc5+ {[%clk 0:02:11]} 24. Kf1 {[%clk 0:01:54]}  Re5 {[%clk 0:02:07]} 25. Rac1 {[%clk 0:01:51]}  Be3 {[%clk 0:02:01]} 26. Rc2 {[%clk 0:01:49]}  Rxf5 {[%clk 0:02:00]} 27. Re1 {[%clk 0:01:43]}  Bb6 {[%clk 0:01:41]} 28. Rce2 {[%clk 0:01:41]}  Re8 {[%clk 0:01:40]} 29. Rxe8 {[%clk 0:01:39]}  Nxe8 {[%clk 0:01:40]} 30. Ne2 {[%clk 0:01:38]}  Nd6 {[%clk 0:01:38]} 31. Ng3 {[%clk 0:01:37]}  Rf6 {[%clk 0:01:32]} 32. b3 {[%clk 0:01:32]}  Re6 {[%clk 0:01:27]} 33. Rd1 {[%clk 0:01:25]}  Nb5 {[%clk 0:01:24]} 34. Bh3 {[%clk 0:01:24]}  Re3 {[%clk 0:01:20]} 35. Bg4 {[%clk 0:01:23]}  Rc3 {[%clk 0:01:01]} 36. Rd2 {[%clk 0:00:58]}  Rc1+ {[%clk 0:00:59]} 37. Kg2 {[%clk 0:00:57]}  Nd4 {[%clk 0:00:45]} 38. Nf5 {[%clk 0:00:52]}  Rc2 {[%clk 0:00:25]} 39. Nd6+ {[%clk 0:00:47]}  Kf6 {[%clk 0:00:23]} 40. Rxc2 {[%clk 0:00:46]}  Nxc2 {[%clk 0:00:24]} 41. Nxb7 {[%clk 0:00:45]}  Ke7 {[%clk 0:00:22]} 42. Kh3 {[%clk 0:00:40]}  Nb4 {[%clk 0:00:21]} 43. a4 {[%clk 0:00:38]}  a5 {[%clk 0:00:18]} 44. Bf5 {[%clk 0:00:37]}  d4 {[%clk 0:00:18]} 45. Kg2 {[%clk 0:00:35]}  d3 {[%clk 0:00:16]} 46. Kf1 {[%clk 0:00:35]}  Kf6 {[%clk 0:00:10]} 47. Be4 {[%clk 0:00:22]}  Ke5 {[%clk 0:00:10]} 48. Ke1 {[%clk 0:00:20]}  Kd4 {[%clk 0:00:08]} 49. Kd1 {[%clk 0:00:20]}  Kc3 {[%clk 0:00:08]} 50. Nd6 {[%clk 0:00:19]}  Kxb3 {[%clk 0:00:08]} 51. Bf5 {[%clk 0:00:17]}  Kxa4 {[%clk 0:00:06]} 52. Nc4 {[%clk 0:00:16]}  Bc7 {[%clk 0:00:06]} 53. Nb2+ {[%clk 0:00:16]}  Kb3 {[%clk 0:00:06]} 54. Nxd3 {[%clk 0:00:16]}  Nxd3 {[%clk 0:00:07]} 55. Bxd3 {[%clk 0:00:15]}  a4 {[%clk 0:00:07]} 56. Bc2+ {[%clk 0:00:15]}  Kb4 {[%clk 0:00:07]} 57. Bb1 {[%clk 0:00:13]}  Kc3 {[%clk 0:00:07]} 58. Be4 {[%clk 0:00:11]}  Kb2 {[%clk 0:00:03]} 59. Bxc6 {[%clk 0:00:10]}  a3 {[%clk 0:00:04]} 60. Bd5 {[%clk 0:00:09]}  a2 {[%clk 0:00:04]} 61. Bxa2 {[%clk 0:00:08]}  Kxa2 {[%clk 0:00:05]} 62. Kc2 {[%clk 0:00:08]}  Bf4 {[%clk 0:00:06]} 0-1


[Site "https://www.chess.com"]